[Event "Titled Tuesday Blitz July 11 Late 2023"]
[White "Bok, Benjamin"]
[Black "Ballester Llagaria, Luis Eduardo"]
[WhiteFideId "1017063"]
[BlackFideId "2297620"]
[WhiteElo "2980"]
[BlackElo "2563"]
[Result "1-0"]
[Round "4"]
[TimeControl "180+2"]
[Date "2023.07.11"]
[WhiteClock "0:00:04"]
[BlackClock "0:00:11"]
[Board "31"]

1. d4 {[%clk 0:02:54]}  d5 {[%clk 0:02:59]} 2. c4 {[%clk 0:02:53]}  dxc4 {[%clk 0:03:00]} 3. Nf3 {[%clk 0:02:52]}  Nf6 {[%clk 0:03:01]} 4. e3 {[%clk 0:02:52]}  e6 {[%clk 0:03:01]} 5. Bxc4 {[%clk 0:02:52]}  a6 {[%clk 0:03:02]} 6. O-O {[%clk 0:02:52]}  b5 {[%clk 0:03:03]} 7. Be2 {[%clk 0:02:50]}  Bb7 {[%clk 0:03:04]} 8. a4 {[%clk 0:02:50]}  b4 {[%clk 0:03:04]} 9. Nbd2 {[%clk 0:02:49]}  Nbd7 {[%clk 0:03:05]} 10. b3 {[%clk 0:02:49]}  c5 {[%clk 0:03:05]} 11. Bb2 {[%clk 0:02:49]}  Be7 {[%clk 0:03:05]} 12. Rc1 {[%clk 0:02:49]}  Rc8 {[%clk 0:03:03]} 13. Nc4 {[%clk 0:02:49]}  O-O {[%clk 0:03:00]} 14. Nfe5 {[%clk 0:02:49]}  Bd5 {[%clk 0:02:52]} 15. Bf3 {[%clk 0:02:47]}  Qc7 {[%clk 0:02:42]} 16. Qe2 {[%clk 0:01:47]}  Rfd8 {[%clk 0:02:27]} 17. Rfd1 {[%clk 0:01:43]}  Qb7 {[%clk 0:02:21]} 18. h3 {[%clk 0:01:18]}  h6 {[%clk 0:02:21]} 19. Nxd7 {[%clk 0:01:16]}  Rxd7 {[%clk 0:02:08]} 20. dxc5 {[%clk 0:01:13]}  Rxc5 {[%clk 0:01:54]} 21. Bd4 {[%clk 0:01:12]}  Bxf3 {[%clk 0:01:35]} 22. Qxf3 {[%clk 0:01:11]}  Qxf3 {[%clk 0:01:34]} 23. gxf3 {[%clk 0:01:12]}  Rc8 {[%clk 0:01:19]} 24. Nb6 {[%clk 0:00:36]}  Rxc1 {[%clk 0:01:18]} 25. Rxc1 {[%clk 0:00:37]}  Rd8 {[%clk 0:01:19]} 26. Rc7 {[%clk 0:00:32]}  Bd6 {[%clk 0:01:01]} 27. Ra7 {[%clk 0:00:32]}  e5 {[%clk 0:00:59]} 28. Bb2 {[%clk 0:00:33]}  Bc5 {[%clk 0:00:29]} 29. Rxa6 {[%clk 0:00:32]}  Rd3 {[%clk 0:00:22]} 30. Bxe5 {[%clk 0:00:26]}  Rxb3 {[%clk 0:00:18]} 31. Bxf6 {[%clk 0:00:17]}  gxf6 {[%clk 0:00:19]} 32. Nd7 {[%clk 0:00:17]}  Rc3 {[%clk 0:00:13]} 33. Nxc5 {[%clk 0:00:04]}  Rxc5 {[%clk 0:00:13]} 34. Rb6 {[%clk 0:00:04]}  Rc4 {[%clk 0:00:14]} 35. Rxf6 {[%clk 0:00:05]}  b3 {[%clk 0:00:11]} 36. Rb6 {[%clk 0:00:04]}  Rc3 {[%clk 0:00:11]} 37. a5 {[%clk 0:00:04]}  Rc1+ {[%clk 0:00:10]} 38. Kg2 {[%clk 0:00:05]}  Ra1 {[%clk 0:00:11]} 39. Rxb3 {[%clk 0:00:05]}  Rxa5 {[%clk 0:00:11]} 40. Rb4 {[%clk 0:00:05]}  Kg7 {[%clk 0:00:11]} 41. Kg3 {[%clk 0:00:05]}  Kg6 {[%clk 0:00:12]} 42. f4 {[%clk 0:00:05]}  f6 {[%clk 0:00:12]} 43. f3 {[%clk 0:00:05]}  h5 {[%clk 0:00:13]} 44. e4 {[%clk 0:00:05]}  Ra3 {[%clk 0:00:13]} 45. Rb6 {[%clk 0:00:05]}  Kg7 {[%clk 0:00:12]} 46. Rb7+ {[%clk 0:00:05]}  Kg6 {[%clk 0:00:12]} 47. f5+ {[%clk 0:00:06]}  Kh6 {[%clk 0:00:12]} 48. Rf7 {[%clk 0:00:06]}  h4+ {[%clk 0:00:09]} 49. Kxh4 {[%clk 0:00:04]}  Rxf3 {[%clk 0:00:10]} 50. Rxf6+ {[%clk 0:00:04]}  Kg7 {[%clk 0:00:10]} 51. Rg6+ {[%clk 0:00:04]}  Kh7 {[%clk 0:00:11]} 52. Kg4 {[%clk 0:00:05]}  Rf1 {[%clk 0:00:11]} 53. Re6 {[%clk 0:00:05]}  Rg1+ {[%clk 0:00:12]} 54. Kf4 {[%clk 0:00:05]}  Rh1 {[%clk 0:00:12]} 55. Kg5 {[%clk 0:00:03]}  Rxh3 {[%clk 0:00:12]} 56. Re7+ {[%clk 0:00:04]}  Kg8 {[%clk 0:00:12]} 57. f6 {[%clk 0:00:04]}  Rg3+ {[%clk 0:00:13]} 58. Kf5 {[%clk 0:00:05]}  Kf8 {[%clk 0:00:13]} 59. e5 {[%clk 0:00:05]}  Ra3 {[%clk 0:00:13]} 60. Rb7 {[%clk 0:00:05]}  Rb3 {[%clk 0:00:11]} 61. Rxb3 {[%clk 0:00:04]} 1-0


[Site "https://www.chess.com"]

[Event "Titled Tuesday Blitz July 11 Late 2023"]
[White "Kollars, Dmitrij"]
[Black "FromTexas54"]
[WhiteFideId "12909572"]
[WhiteElo "2975"]
[BlackElo "2558"]
[Result "1-0"]
[Round "4"]
[TimeControl "180+2"]
[Date "2023.07.11"]
[WhiteClock "0:00:11"]
[BlackClock "0:00:05"]
[Board "32"]

1. e4 {[%clk 0:03:00]}  e5 {[%clk 0:02:59]} 2. Nf3 {[%clk 0:03:00]}  Nc6 {[%clk 0:02:59]} 3. g3 {[%clk 0:02:59]}  Nf6 {[%clk 0:02:57]} 4. Nc3 {[%clk 0:02:59]}  g6 {[%clk 0:02:56]} 5. Bg2 {[%clk 0:02:57]}  Bg7 {[%clk 0:02:57]} 6. O-O {[%clk 0:02:58]}  O-O {[%clk 0:02:57]} 7. d3 {[%clk 0:02:51]}  d6 {[%clk 0:02:57]} 8. h3 {[%clk 0:02:51]}  h6 {[%clk 0:02:56]} 9. Be3 {[%clk 0:02:46]}  Be6 {[%clk 0:02:55]} 10. Qd2 {[%clk 0:02:44]}  Kh7 {[%clk 0:02:54]} 11. d4 {[%clk 0:02:44]}  exd4 {[%clk 0:02:54]} 12. Nxd4 {[%clk 0:02:45]}  Bd7 {[%clk 0:02:42]} 13. Rad1 {[%clk 0:02:44]}  Ne5 {[%clk 0:02:39]} 14. b3 {[%clk 0:02:43]}  Re8 {[%clk 0:02:38]} 15. f4 {[%clk 0:02:40]}  Nc6 {[%clk 0:02:38]} 16. Rfe1 {[%clk 0:02:38]}  Qc8 {[%clk 0:02:17]} 17. Kh2 {[%clk 0:02:36]}  Nxd4 {[%clk 0:02:15]} 18. Bxd4 {[%clk 0:02:36]}  Bc6 {[%clk 0:02:14]} 19. Re3 {[%clk 0:02:06]}  Re7 {[%clk 0:02:11]} 20. Rde1 {[%clk 0:02:04]}  Qh8 {[%clk 0:02:11]} 21. e5 {[%clk 0:01:49]}  dxe5 {[%clk 0:02:10]} 22. Bxe5 {[%clk 0:01:27]}  Bxg2 {[%clk 0:02:05]} 23. Qxg2 {[%clk 0:01:28]}  Rae8 {[%clk 0:01:40]} 24. Qxb7 {[%clk 0:01:28]}  Nh5 {[%clk 0:01:14]} 25. Bxg7 {[%clk 0:01:16]}  Rxe3 {[%clk 0:01:08]} 26. Bxh8 {[%clk 0:01:07]}  Rxe1 {[%clk 0:01:07]} 27. Bd4 {[%clk 0:01:07]}  Rc1 {[%clk 0:01:03]} 28. Qg2 {[%clk 0:01:01]}  Ree1 {[%clk 0:01:01]} 29. Bf2 {[%clk 0:00:43]}  Re7 {[%clk 0:00:49]} 30. Bd4 {[%clk 0:00:33]}  Ree1 {[%clk 0:00:44]} 31. Ne4 {[%clk 0:00:33]}  f5 {[%clk 0:00:30]} 32. Nf6+ {[%clk 0:00:28]}  Nxf6 {[%clk 0:00:29]} 33. Bxf6 {[%clk 0:00:29]}  Kg8 {[%clk 0:00:28]} 34. Bc3 {[%clk 0:00:26]}  Red1 {[%clk 0:00:26]} 35. g4 {[%clk 0:00:19]}  Kf7 {[%clk 0:00:25]} 36. gxf5 {[%clk 0:00:19]}  gxf5 {[%clk 0:00:25]} 37. Qg7+ {[%clk 0:00:19]}  Ke8 {[%clk 0:00:25]} 38. Qe5+ {[%clk 0:00:18]}  Kd8 {[%clk 0:00:25]} 39. Qf6+ {[%clk 0:00:18]}  Ke8 {[%clk 0:00:25]} 40. Qe6+ {[%clk 0:00:19]}  Kf8 {[%clk 0:00:20]} 41. Qxf5+ {[%clk 0:00:19]}  Ke8 {[%clk 0:00:20]} 42. Qe6+ {[%clk 0:00:19]}  Kf8 {[%clk 0:00:19]} 43. Qxh6+ {[%clk 0:00:19]}  Kf7 {[%clk 0:00:19]} 44. Qf6+ {[%clk 0:00:19]}  Ke8 {[%clk 0:00:19]} 45. Qe6+ {[%clk 0:00:20]}  Kf8 {[%clk 0:00:19]} 46. Bd4 {[%clk 0:00:17]}  Rxc2+ {[%clk 0:00:17]} 47. Kg3 {[%clk 0:00:18]}  Rd3+ {[%clk 0:00:14]} 48. Kh4 {[%clk 0:00:18]}  Rcd2 {[%clk 0:00:12]} 49. Be5 {[%clk 0:00:17]}  Rd7 {[%clk 0:00:12]} 50. Kg5 {[%clk 0:00:15]}  R2d5 {[%clk 0:00:11]} 51. h4 {[%clk 0:00:13]}  Rg7+ {[%clk 0:00:10]} 52. Kh6 {[%clk 0:00:12]}  Re7 {[%clk 0:00:11]} 53. Qxd5 {[%clk 0:00:11]}  Rh7+ {[%clk 0:00:05]} 54. Kxh7 {[%clk 0:00:11]} 1-0


[Site "https://www.chess.com"]

[Event "Titled Tuesday Blitz July 11 Late 2023"]
[White "Durarbayli, Vasif"]
[Black "only_strong_moves"]
[WhiteFideId "13402935"]
[WhiteElo "2915"]
[BlackElo "2554"]
[Result "1-0"]
[Round "4"]
[TimeControl "180+2"]
[Date "2023.07.11"]
[WhiteClock "0:00:13"]
[BlackClock "0:00:00"]
[Board "35"]

1. e4 {[%clk 0:03:00]}  e5 {[%clk 0:02:59]} 2. Nc3 {[%clk 0:03:00]}  Nc6 {[%clk 0:02:59]} 3. f4 {[%clk 0:02:59]}  exf4 {[%clk 0:02:57]} 4. d4 {[%clk 0:03:00]}  g5 {[%clk 0:02:35]} 5. h4 {[%clk 0:02:59]}  Bg7 {[%clk 0:02:32]} 6. d5 {[%clk 0:02:57]}  Ne5 {[%clk 0:02:27]} 7. hxg5 {[%clk 0:02:57]}  Qxg5 {[%clk 0:02:28]} 8. Nge2 {[%clk 0:02:57]}  Ng6 {[%clk 0:02:22]} 9. Qd3 {[%clk 0:02:44]}  d6 {[%clk 0:02:05]} 10. Bd2 {[%clk 0:02:32]}  a6 {[%clk 0:01:57]} 11. Qc4 {[%clk 0:02:31]}  Nf6 {[%clk 0:01:29]} 12. Qxc7 {[%clk 0:02:19]}  O-O {[%clk 0:01:29]} 13. g3 {[%clk 0:02:04]}  Nh5 {[%clk 0:01:07]} 14. gxf4 {[%clk 0:01:54]}  Nhxf4 {[%clk 0:01:00]} 15. Qxd6 {[%clk 0:01:38]}  Be5 {[%clk 0:00:59]} 16. Qb6 {[%clk 0:01:32]}  Bg4 {[%clk 0:00:53]} 17. Rg1 {[%clk 0:01:24]}  Nh4 {[%clk 0:00:24]} 18. O-O-O {[%clk 0:01:16]}  Nf3 {[%clk 0:00:24]} 19. Rh1 {[%clk 0:00:35]}  Nxd2 {[%clk 0:00:23]} 20. Rxd2 {[%clk 0:00:34]}  Nxe2+ {[%clk 0:00:16]} 21. Nxe2 {[%clk 0:00:33]}  Rac8 {[%clk 0:00:11]} 22. Rg1 {[%clk 0:00:26]}  h5 {[%clk 0:00:11]} 23. Bh3 {[%clk 0:00:16]}  f5 {[%clk 0:00:05]} 24. Qe6+ {[%clk 0:00:13]}  Kh7 {[%clk 0:00:01]} 25. Qxe5 {[%clk 0:00:13]}  Rf7 {[%clk 0:00:01]} 26. Bxg4 {[%clk 0:00:13]}  hxg4 {[%clk 0:00:01]} 27. exf5 {[%clk 0:00:13]}  Rxf5 {[%clk 0:00:01]} 28. Qh2+ {[%clk 0:00:14]}  Kg6 {[%clk 0:00:00]} 29. Qg2 {[%clk 0:00:13]} 1-0


[Site "https://www.chess.com"]

[Event "Titled Tuesday Blitz July 11 Late 2023"]
[White "Moral Garcia, Serafin"]
[Black "Tang, Andrew"]
[WhiteFideId "2201925"]
[BlackFideId "2059630"]
[WhiteElo "2543"]
[BlackElo "2911"]
[Result "1-0"]
[Round "4"]
[TimeControl "180+2"]
[Date "2023.07.11"]
[WhiteClock "0:00:15"]
[BlackClock "0:00:00"]
[Board "36"]

1. e4 {[%clk 0:02:51]}  b5 {[%clk 0:03:00]} 2. Bxb5 {[%clk 0:02:46]}  f5 {[%clk 0:03:00]} 3. exf5 {[%clk 0:02:44]}  c6 {[%clk 0:03:00]} 4. Qh5+ {[%clk 0:02:21]}  g6 {[%clk 0:03:00]} 5. fxg6 {[%clk 0:02:19]}  Bg7 {[%clk 0:03:00]} 6. gxh7+ {[%clk 0:02:17]}  Kf8 {[%clk 0:03:00]} 7. hxg8=Q+ {[%clk 0:02:14]}  Kxg8 {[%clk 0:02:59]} 8. Qg5 {[%clk 0:02:02]}  cxb5 {[%clk 0:02:58]} 9. Qd5+ {[%clk 0:02:00]}  Kh7 {[%clk 0:02:57]} 10. Nf3 {[%clk 0:01:45]}  e6 {[%clk 0:02:41]} 11. Qxa8 {[%clk 0:01:37]}  Nc6 {[%clk 0:02:40]} 12. Nc3 {[%clk 0:01:37]}  Qb6 {[%clk 0:02:40]} 13. d3 {[%clk 0:01:31]}  Bb7 {[%clk 0:02:28]} 14. Be3 {[%clk 0:01:25]}  Qc7 {[%clk 0:01:56]} 15. Ng5+ {[%clk 0:01:21]}  Kg6 {[%clk 0:01:56]} 16. Qxh8 {[%clk 0:01:22]}  Bxh8 {[%clk 0:01:57]} 17. h4 {[%clk 0:01:16]}  Nb4 {[%clk 0:01:38]} 18. Kd2 {[%clk 0:01:12]}  Nxc2 {[%clk 0:00:43]} 19. Kxc2 {[%clk 0:01:09]}  b4 {[%clk 0:00:43]} 20. Bd2 {[%clk 0:01:08]}  bxc3 {[%clk 0:00:31]} 21. bxc3 {[%clk 0:01:06]}  Bc6 {[%clk 0:00:28]} 22. a4 {[%clk 0:01:02]}  Qa5 {[%clk 0:00:23]} 23. h5+ {[%clk 0:00:59]}  Kg7 {[%clk 0:00:23]} 24. Rh4 {[%clk 0:00:59]}  Kf8 {[%clk 0:00:19]} 25. h6 {[%clk 0:00:56]}  Ke8 {[%clk 0:00:19]} 26. h7 {[%clk 0:00:52]}  e5 {[%clk 0:00:20]} 27. Rb4 {[%clk 0:00:38]}  Qc7 {[%clk 0:00:16]} 28. Rab1 {[%clk 0:00:33]}  Ke7 {[%clk 0:00:15]} 29. Rb8 {[%clk 0:00:29]}  Bxa4+ {[%clk 0:00:15]} 30. Kc1 {[%clk 0:00:21]}  Bf6 {[%clk 0:00:04]} 31. Ne4 {[%clk 0:00:21]}  Bg7 {[%clk 0:00:05]} 32. Rg8 {[%clk 0:00:17]}  Kf7 {[%clk 0:00:05]} 33. Rbb8 {[%clk 0:00:18]}  d5 {[%clk 0:00:01]} 34. Rxg7+ {[%clk 0:00:15]}  Kxg7 {[%clk 0:00:00]} 35. h8=Q+ {[%clk 0:00:15]} 1-0


[Site "https://www.chess.com"]

[Event "Titled Tuesday Blitz July 11 Late 2023"]
[White "Aggelis, Nikolaos"]
[Black "Gordievsky, Dmitry"]
[WhiteFideId "4213220"]
[BlackFideId "24112798"]
[WhiteElo "2541"]
[BlackElo "2906"]
[Result "0-1"]
[Round "4"]
[TimeControl "180+2"]
[Date "2023.07.11"]
[WhiteClock "0:00:06"]
[BlackClock "0:00:10"]
[Board "37"]

1. c4 {[%clk 0:03:00]}  e6 {[%clk 0:02:59]} 2. g3 {[%clk 0:02:57]}  d5 {[%clk 0:02:59]} 3. Bg2 {[%clk 0:02:57]}  Nf6 {[%clk 0:03:00]} 4. Nf3 {[%clk 0:02:57]}  d4 {[%clk 0:03:01]} 5. O-O {[%clk 0:02:54]}  c5 {[%clk 0:03:01]} 6. b4 {[%clk 0:02:46]}  cxb4 {[%clk 0:03:01]} 7. a3 {[%clk 0:02:42]}  Nc6 {[%clk 0:03:01]} 8. e3 {[%clk 0:02:32]}  dxe3 {[%clk 0:02:45]} 9. fxe3 {[%clk 0:02:33]}  bxa3 {[%clk 0:02:44]} 10. d4 {[%clk 0:02:32]}  Be7 {[%clk 0:02:43]} 11. Bxa3 {[%clk 0:02:19]}  O-O {[%clk 0:02:43]} 12. Nc3 {[%clk 0:02:17]}  Bxa3 {[%clk 0:02:41]} 13. Rxa3 {[%clk 0:02:16]}  Qe7 {[%clk 0:02:31]} 14. Qa1 {[%clk 0:02:12]}  Rd8 {[%clk 0:02:30]} 15. Rb1 {[%clk 0:02:08]}  Rb8 {[%clk 0:02:28]} 16. Ne1 {[%clk 0:01:32]}  Bd7 {[%clk 0:02:21]} 17. Nd3 {[%clk 0:01:32]}  Be8 {[%clk 0:02:04]} 18. Nc5 {[%clk 0:01:08]}  Ng4 {[%clk 0:01:48]} 19. Ne2 {[%clk 0:00:56]}  e5 {[%clk 0:01:39]} 20. Ne4 {[%clk 0:00:33]}  f5 {[%clk 0:01:16]} 21. Nf2 {[%clk 0:00:27]}  exd4 {[%clk 0:00:52]} 22. Nxd4 {[%clk 0:00:22]}  Nxf2 {[%clk 0:00:37]} 23. Kxf2 {[%clk 0:00:22]}  Ne5 {[%clk 0:00:34]} 24. Bd5+ {[%clk 0:00:19]}  Kh8 {[%clk 0:00:33]} 25. Kg1 {[%clk 0:00:18]}  Bg6 {[%clk 0:00:28]} 26. Rab3 {[%clk 0:00:18]}  b6 {[%clk 0:00:20]} 27. Rf1 {[%clk 0:00:13]}  Ng4 {[%clk 0:00:13]} 28. Ne2 {[%clk 0:00:13]}  Nxe3 {[%clk 0:00:11]} 29. Rf2 {[%clk 0:00:11]}  Nxd5 {[%clk 0:00:11]} 30. cxd5 {[%clk 0:00:12]}  Rxd5 {[%clk 0:00:11]} 31. Nf4 {[%clk 0:00:09]}  Re5 {[%clk 0:00:12]} 32. Rb1 {[%clk 0:00:09]}  Re8 {[%clk 0:00:11]} 33. Nxg6+ {[%clk 0:00:09]}  hxg6 {[%clk 0:00:11]} 34. Qa2 {[%clk 0:00:06]}  Re1+ {[%clk 0:00:11]} 35. Rxe1 {[%clk 0:00:06]}  Qxe1+ {[%clk 0:00:11]} 36. Kg2 {[%clk 0:00:06]}  Qe7 {[%clk 0:00:10]} 37. Kg1 {[%clk 0:00:07]}  a5 {[%clk 0:00:09]} 38. Qa4 {[%clk 0:00:07]}  Rd8 {[%clk 0:00:09]} 39. Kg2 {[%clk 0:00:05]}  Qe4+ {[%clk 0:00:08]} 40. Qxe4 {[%clk 0:00:06]}  fxe4 {[%clk 0:00:09]} 41. Re2 {[%clk 0:00:06]}  b5 {[%clk 0:00:09]} 42. Rxe4 {[%clk 0:00:06]}  b4 {[%clk 0:00:09]} 43. Re5 {[%clk 0:00:06]}  Ra8 {[%clk 0:00:08]} 44. Rb5 {[%clk 0:00:05]}  Kg8 {[%clk 0:00:07]} 45. Kf3 {[%clk 0:00:05]}  Kf7 {[%clk 0:00:05]} 46. Ke4 {[%clk 0:00:06]}  Kf6 {[%clk 0:00:05]} 47. h4 {[%clk 0:00:05]}  a4 {[%clk 0:00:04]} 48. Rb6+ {[%clk 0:00:05]}  Kf7 {[%clk 0:00:04]} 49. Rxb4 {[%clk 0:00:05]}  a3 {[%clk 0:00:04]} 50. Rb1 {[%clk 0:00:06]}  a2 {[%clk 0:00:05]} 51. Ra1 {[%clk 0:00:05]}  Ke6 {[%clk 0:00:05]} 52. Kd3 {[%clk 0:00:06]}  Kf5 {[%clk 0:00:05]} 53. Kc2 {[%clk 0:00:07]}  Kg4 {[%clk 0:00:05]} 54. Kb2 {[%clk 0:00:07]}  Kxg3 {[%clk 0:00:06]} 55. Rg1+ {[%clk 0:00:08]}  Kxh4 {[%clk 0:00:06]} 56. Ka1 {[%clk 0:00:09]}  g5 {[%clk 0:00:06]} 57. Rh1+ {[%clk 0:00:06]}  Kg4 {[%clk 0:00:07]} 58. Rg1+ {[%clk 0:00:07]}  Kf5 {[%clk 0:00:07]} 59. Rf1+ {[%clk 0:00:07]}  Kg6 {[%clk 0:00:08]} 60. Rg1 {[%clk 0:00:08]}  Ra4 {[%clk 0:00:08]} 61. Rc1 {[%clk 0:00:05]}  g4 {[%clk 0:00:08]} 62. Rc6+ {[%clk 0:00:05]}  Kg5 {[%clk 0:00:09]} 63. Rc5+ {[%clk 0:00:05]}  Kh4 {[%clk 0:00:09]} 64. Rc7 {[%clk 0:00:06]}  g6 {[%clk 0:00:09]} 65. Rg7 {[%clk 0:00:05]}  Kg5 {[%clk 0:00:09]} 66. Rg8 {[%clk 0:00:05]}  g3 {[%clk 0:00:10]} 67. Rd8 {[%clk 0:00:05]}  g2 {[%clk 0:00:09]} 68. Rd1 {[%clk 0:00:06]}  Rg4 {[%clk 0:00:09]} 69. Rg1 {[%clk 0:00:07]}  Kh4 {[%clk 0:00:10]} 70. Kxa2 {[%clk 0:00:06]}  Kh3 {[%clk 0:00:10]} 0-1


[Site "https://www.chess.com"]

[Event "Titled Tuesday Blitz July 11 Late 2023"]
[White "Graif, William"]
[Black "Rustemov, Alexander"]
[WhiteFideId "2609835"]
[BlackFideId "4119002"]
[WhiteElo "2540"]
[BlackElo "2903"]
[Result "0-1"]
[Round "4"]
[TimeControl "180+2"]
[Date "2023.07.11"]
[WhiteClock "0:00:00"]
[BlackClock "0:00:57"]
[Board "38"]

1. e4 {[%clk 0:03:00]}  e6 {[%clk 0:02:59]} 2. d4 {[%clk 0:02:58]}  d5 {[%clk 0:03:00]} 3. Be3 {[%clk 0:02:57]}  dxe4 {[%clk 0:02:57]} 4. f3 {[%clk 0:02:58]}  Nf6 {[%clk 0:02:51]} 5. Nd2 {[%clk 0:02:57]}  exf3 {[%clk 0:02:49]} 6. Ngxf3 {[%clk 0:02:58]}  Nbd7 {[%clk 0:02:44]} 7. Bd3 {[%clk 0:02:57]}  c5 {[%clk 0:02:43]} 8. O-O {[%clk 0:02:56]}  cxd4 {[%clk 0:02:43]} 9. Bxd4 {[%clk 0:02:38]}  Bc5 {[%clk 0:02:42]} 10. c3 {[%clk 0:02:29]}  O-O {[%clk 0:02:38]} 11. Bc2 {[%clk 0:02:18]}  b6 {[%clk 0:02:33]} 12. Qe2 {[%clk 0:01:58]}  Bb7 {[%clk 0:02:30]} 13. Rae1 {[%clk 0:01:42]}  Qc7 {[%clk 0:02:28]} 14. Qf2 {[%clk 0:01:31]}  h6 {[%clk 0:02:20]} 15. Kh1 {[%clk 0:01:25]}  Rad8 {[%clk 0:02:15]} 16. Nb3 {[%clk 0:01:22]}  Bxd4 {[%clk 0:02:12]} 17. Nfxd4 {[%clk 0:01:20]}  Ba6 {[%clk 0:01:54]} 18. Rg1 {[%clk 0:01:08]}  Ng4 {[%clk 0:01:54]} 19. Qg3 {[%clk 0:00:49]}  Qxg3 {[%clk 0:01:49]} 20. hxg3 {[%clk 0:00:50]}  Ndf6 {[%clk 0:01:29]} 21. Bd1 {[%clk 0:00:34]}  e5 {[%clk 0:01:20]} 22. Bxg4 {[%clk 0:00:17]}  exd4 {[%clk 0:01:15]} 23. Be2 {[%clk 0:00:13]}  Bxe2 {[%clk 0:01:13]} 24. Rxe2 {[%clk 0:00:13]}  dxc3 {[%clk 0:01:13]} 25. bxc3 {[%clk 0:00:13]}  Rfe8 {[%clk 0:01:09]} 26. Rge1 {[%clk 0:00:13]}  Rxe2 {[%clk 0:01:09]} 27. Rxe2 {[%clk 0:00:14]}  Kf8 {[%clk 0:01:08]} 28. Nd4 {[%clk 0:00:12]}  g6 {[%clk 0:01:07]} 29. Kg1 {[%clk 0:00:11]}  Rc8 {[%clk 0:01:06]} 30. Nb5 {[%clk 0:00:09]}  a6 {[%clk 0:01:04]} 31. Nd6 {[%clk 0:00:05]}  Rxc3 {[%clk 0:01:04]} 32. Rf2 {[%clk 0:00:04]}  Rc1+ {[%clk 0:00:59]} 33. Rf1 {[%clk 0:00:02]}  Rxf1+ {[%clk 0:00:58]} 34. Kxf1 {[%clk 0:00:03]}  Nd5 {[%clk 0:00:57]} 35. Ke1 {[%clk 0:00:00]}  Ke7 {[%clk 0:00:57]} 0-1


[Site "https://www.chess.com"]

[Event "Titled Tuesday Blitz July 11 Late 2023"]
[White "Yelisieiev, Yevhenii"]
[Black "Beerdsen, Thomas"]
[WhiteFideId "14139642"]
[BlackFideId "1030108"]
[WhiteElo "2537"]
[BlackElo "2823"]
[Result "0-1"]
[Round "4"]
[TimeControl "180+2"]
[Date "2023.07.11"]
[WhiteClock "0:00:07"]
[BlackClock "0:01:42"]
[Board "40"]

1. d4 {[%clk 0:03:00]}  Nf6 {[%clk 0:02:59]} 2. Nf3 {[%clk 0:03:00]}  b5 {[%clk 0:03:00]} 3. e3 {[%clk 0:02:54]}  b4 {[%clk 0:02:56]} 4. Bd3 {[%clk 0:02:52]}  Bb7 {[%clk 0:02:55]} 5. Nbd2 {[%clk 0:02:50]}  a5 {[%clk 0:02:56]} 6. e4 {[%clk 0:02:50]}  e6 {[%clk 0:02:54]} 7. O-O {[%clk 0:02:46]}  c5 {[%clk 0:02:54]} 8. d5 {[%clk 0:02:16]}  exd5 {[%clk 0:02:43]} 9. exd5 {[%clk 0:02:16]}  Be7 {[%clk 0:02:40]} 10. Nc4 {[%clk 0:01:45]}  Bxd5 {[%clk 0:02:34]} 11. Ne3 {[%clk 0:01:36]}  Be6 {[%clk 0:02:29]} 12. Nf5 {[%clk 0:01:33]}  O-O {[%clk 0:02:27]} 13. Bf4 {[%clk 0:01:26]}  d5 {[%clk 0:02:21]} 14. Re1 {[%clk 0:01:23]}  Nc6 {[%clk 0:02:21]} 15. Ng5 {[%clk 0:01:19]}  Bxf5 {[%clk 0:02:20]} 16. Bxf5 {[%clk 0:01:19]}  h6 {[%clk 0:02:21]} 17. Nf3 {[%clk 0:01:17]}  Bd6 {[%clk 0:02:22]} 18. Qd2 {[%clk 0:01:12]}  Bxf4 {[%clk 0:02:18]} 19. Qxf4 {[%clk 0:01:13]}  Re8 {[%clk 0:02:15]} 20. h3 {[%clk 0:01:02]}  Ra7 {[%clk 0:02:08]} 21. Rxe8+ {[%clk 0:01:00]}  Qxe8 {[%clk 0:02:08]} 22. Rd1 {[%clk 0:01:00]}  Re7 {[%clk 0:02:08]} 23. Qd6 {[%clk 0:00:58]}  c4 {[%clk 0:02:04]} 24. Qc5 {[%clk 0:00:40]}  a4 {[%clk 0:01:58]} 25. b3 {[%clk 0:00:36]}  axb3 {[%clk 0:01:57]} 26. axb3 {[%clk 0:00:36]}  Ne5 {[%clk 0:01:44]} 27. Nd4 {[%clk 0:00:25]}  g6 {[%clk 0:01:39]} 28. Qd6 {[%clk 0:00:19]}  Kg7 {[%clk 0:01:35]} 29. Bg4 {[%clk 0:00:15]}  Nexg4 {[%clk 0:01:34]} 30. hxg4 {[%clk 0:00:16]}  Re1+ {[%clk 0:01:34]} 31. Rxe1 {[%clk 0:00:14]}  Qxe1+ {[%clk 0:01:35]} 32. Kh2 {[%clk 0:00:15]}  Qxf2 {[%clk 0:01:36]} 33. Qe5 {[%clk 0:00:13]}  cxb3 {[%clk 0:01:32]} 34. cxb3 {[%clk 0:00:08]}  Qh4+ {[%clk 0:01:31]} 35. Kg1 {[%clk 0:00:08]}  Qxg4 {[%clk 0:01:32]} 36. Nc6 {[%clk 0:00:06]}  Qe4 {[%clk 0:01:31]} 37. Qb2 {[%clk 0:00:05]}  h5 {[%clk 0:01:29]} 38. Nd4 {[%clk 0:00:03]}  Qe1+ {[%clk 0:01:27]} 39. Kh2 {[%clk 0:00:03]}  Ng4+ {[%clk 0:01:28]} 40. Kh3 {[%clk 0:00:02]}  Qh1+ {[%clk 0:01:27]} 41. Kg3 {[%clk 0:00:01]}  Qh2+ {[%clk 0:01:28]} 42. Kf3 {[%clk 0:00:02]}  Qe5 {[%clk 0:01:29]} 43. Ne6+ {[%clk 0:00:02]}  fxe6 {[%clk 0:01:29]} 44. Qxe5+ {[%clk 0:00:02]}  Nxe5+ {[%clk 0:01:30]} 45. Kf4 {[%clk 0:00:02]}  Kf6 {[%clk 0:01:30]} 46. Ke3 {[%clk 0:00:03]}  g5 {[%clk 0:01:31]} 47. Kd4 {[%clk 0:00:04]}  Nd7 {[%clk 0:01:31]} 48. Kd3 {[%clk 0:00:02]}  h4 {[%clk 0:01:32]} 49. Ke3 {[%clk 0:00:03]}  Kf5 {[%clk 0:01:33]} 50. Kf3 {[%clk 0:00:04]}  g4+ {[%clk 0:01:34]} 51. Ke3 {[%clk 0:00:04]}  h3 {[%clk 0:01:34]} 52. gxh3 {[%clk 0:00:05]}  gxh3 {[%clk 0:01:35]} 53. Kf3 {[%clk 0:00:06]}  h2 {[%clk 0:01:36]} 54. Kg2 {[%clk 0:00:07]}  Ke5 {[%clk 0:01:37]} 55. Kxh2 {[%clk 0:00:07]}  Kd4 {[%clk 0:01:38]} 56. Kg3 {[%clk 0:00:08]}  Kc3 {[%clk 0:01:39]} 57. Kf4 {[%clk 0:00:09]}  Kxb3 {[%clk 0:01:39]} 58. Ke3 {[%clk 0:00:10]}  Kc4 {[%clk 0:01:40]} 59. Kd2 {[%clk 0:00:10]}  b3 {[%clk 0:01:41]} 60. Kc1 {[%clk 0:00:07]}  e5 {[%clk 0:01:42]} 0-1


[Site "https://www.chess.com"]